bitfinex/quotes_SOLUSD_20250717
["timestamp","ask_amount","ask_price","bid_price","bid_amount"]
[1752711194084,0.06,174.14,174.13,25.42582027]
[1752711196092,0.06,174.14,174.13,24.70582027]
[1752711200899,0.06,174.14,174.12,16.78468397]
[1752711201098,0.73,174.14,174.11,16.78468397]
[1752711201290,0.06,174.14,174.13,7.9211363]
[1752711201621,0.06,174.14,174.13,8.6411363]
[1752711202097,0.06,174.14,174.13,25.42582027]
[1752711202696,0.06,174.14,174.13,24.70582027]
[1752711203395,8.6511363,174.14,174.08,0.03]
[1752711203599,8.6511363,174.14,174.03,0.03]
[1752711203600,7.9211363,174.09,174.03,0.75]
[1752711203783,8.6011363,174.08,174.03,8.6711363]
[1752711204812,5.7448153,174.07,174.04,7.9211363]
[1752711205392,5.2448153,174.07,174.04,7.9211363]
[1752711205596,19.60685356,174.07,174.03,8.6711363]
[1752711205983,7.9211363,174.05,174.03,0.03]
[1752711206393,8.6011363,174.05,174.03,0.03]
[1752711206594,0.68,174.05,174.03,0.03]
[1752711207002,5.74580556,174.04,174.03,0.03]
[1752711209305,5.74580556,174.04,174.03,7.9511363]
[1752711209609,5.74580556,174.04,174.03,8.6411363]
[1752711209799,5.74580556,174.04,174.03,0.72]
[1752711210003,5.74580556,174.04,174.03,7.9511363]
[1752711210204,5.74580556,174.04,174.03,0.03]
[1752711211704,5.74514535,174.06,174.03,0.03]
[1752711211915,10.1933363,174.04,173.96,7.9211363]
[1752711212088,7.9211363,173.98,173.94,0.69]
[1752711212298,7.9211363,173.96,173.91,11.61158505]
[1752711212504,8.6011363,173.96,173.92,30.0]
[1752711213094,8.6011363,173.95,173.92,30.0]
[1752711213730,5.74943942,173.93,173.9,0.06]
[1752711214026,7.9211363,173.92,173.9,0.06]
[1752711214218,7.9211363,173.92,173.86,37.9211363]
[1752711214219,7.9211363,173.91,173.86,37.9211363]
[1752711214406,0.68,173.9,173.86,30.0]
[1752711214610,7.9211363,173.91,173.85,7.9211363]
[1752711214818,0.68,173.9,173.85,7.9211363]
[1752711215009,0.68,173.9,173.85,8.6111363]
[1752711215403,20.12303799,173.93,173.85,7.9211363]
[1752711215609,30.48,173.92,173.87,7.9211363]
[1752711215812,5.75010062,173.91,173.87,8.6111363]
[1752711216016,5.75010062,173.91,173.89,7.9211363]
[1752711216329,5.75010062,173.91,173.9,7.9211363]
[1752711216713,5.75010062,173.91,173.89,7.9211363]
[1752711217033,5.75010062,173.91,173.9,7.9211363]
[1752711217242,5.75010062,173.91,173.89,8.6111363]
[1752711218210,20.12303799,173.93,173.89,8.6111363]
[1752711218506,20.12303799,173.93,173.88,16.78468397]
[1752711218507,5.74943942,173.93,173.88,16.78468397]
[1752711218832,5.74943942,173.93,173.9,7.9211363]
[1752711220424,5.74910888,173.94,173.92,7.9211363]
[1752711220621,5.74910888,173.94,173.93,7.9211363]
[1752711220822,14.37156335,173.96,173.93,7.9211363]
[1752711220823,5.74871325,173.96,173.93,7.9211363]
[1752711221129,5.74871325,173.96,173.93,0.69]
[1752711221930,5.7477871,173.98,173.93,0.69]
[1752711222427,6.4277871,173.98,173.93,0.69]
[1752711222620,0.68,173.97,173.93,0.69]
[1752711223828,5.7477871,173.98,173.93,0.69]
[1752711224033,6.4277871,173.98,173.93,0.69]
[1752711224235,5.7477871,173.98,173.94,0.69]
[1752711224418,5.7477871,173.98,173.95,0.69]
[1752711224909,5.7477871,173.98,173.93,0.69]
[1752711225322,0.68,173.97,173.93,0.69]
[1752711225836,5.7477871,173.98,173.93,0.69]
[1752711226015,6.4277871,173.98,173.93,0.69]
[1752711226533,5.7477871,173.98,173.94,0.69]
[1752711227111,5.7477871,173.98,173.97,7.9211363]
[1752711227313,5.74679616,174.01,173.97,8.6111363]
[1752711227513,5.74679616,174.01,173.94,16.78468397]
[1752711227514,5.74679616,174.01,174.0,7.9211363]
[1752711227714,0.06,174.04,174.0,8.6111363]
[1752711228032,0.06,174.04,174.03,7.9211363]
[1752711228731,0.06,174.04,174.03,8.6111363]
[1752711229333,0.06,174.04,174.03,7.9211363]
[1752711230011,0.74,174.04,174.0,16.78468397]
[1752711230216,0.68,174.03,174.0,33.9211363]
[1752711230620,0.68,174.02,173.99,7.9211363]
[1752711230916,0.06,174.04,174.01,7.9211363]
[1752711231217,0.06,174.04,174.03,7.9211363]
[1752711231618,0.06,174.04,174.03,8.6111363]
[1752711231831,0.06,174.04,174.03,7.9211363]
[1752711232024,0.06,174.04,174.02,16.78468397]
[1752711232225,0.06,174.04,174.03,7.9211363]
[1752711233536,0.06,174.04,174.0,26.0]
[1752711233719,0.74,174.04,174.02,7.9211363]
[1752711234041,0.06,174.04,174.02,7.9211363]
[1752711234226,0.06,174.04,174.03,7.9211363]
[1752711235030,0.06,174.04,174.02,7.9211363]
[1752711235540,0.75,174.04,174.02,7.9211363]
[1752711235928,0.69,174.03,174.02,7.9211363]
[1752711236116,0.69,174.03,174.01,7.9211363]
[1752711236316,5.74646592,174.02,174.01,7.9211363]
[1752711237641,0.06,174.04,174.01,7.9211363]
[1752711237838,0.06,174.04,174.03,7.9211363]
[1752711238534,0.06,174.04,174.03,8.5911363]
[1752711240535,0.06,174.04,174.03,7.9211363]
[1752711241554,0.06,174.04,174.03,8.5911363]
[1752711241923,0.06,174.04,174.03,25.37582027]
[1752711244751,0.06,174.04,174.03,51.37582027]
[1752711244942,0.06,174.04,174.03,48.79893059]
[1752711246945,0.06,174.04,174.03,22.79893059]
[1752711249443,0.06,174.04,174.03,48.79893059]
[1752711249749,0.06,174.04,174.03,52.55893059]
[1752711254058,0.06,174.04,174.03,22.79893059]
[1752711256940,0.06,174.04,174.03,16.78468397]
[1752711257148,0.06,174.04,174.03,22.12893059]
[1752711257549,0.06,174.04,174.03,22.79893059]
[1752711257849,29.79,174.1,174.03,22.79893059]
[1752711257850,0.03,174.1,174.09,42.78468397]
[1752711258057,0.03,174.1,174.09,48.79893059]
[1752711259541,0.03,174.1,174.09,48.12893059]
[1752711261434,0.03,174.1,174.09,22.12893059]
[1752711262955,0.03,174.1,174.09,51.88893059]
[1752711263271,0.03,174.1,174.09,52.55893059]
[1752711264560,0.03,174.1,174.09,58.30308591]
[1752711264766,0.06,174.14,174.13,16.78468397]
[1752711264943,0.06,174.14,174.13,51.86893059]
[1752711266232,0.06,174.14,174.13,5.34424662]
[1752711266556,0.78,174.14,174.12,5.34424662]
[1752711266758,0.72,174.13,174.12,5.34424662]
[1752711267148,0.06,174.14,174.12,5.34424662]
[1752711267347,0.78,174.14,174.12,5.34424662]
[1752711267666,0.78,174.14,174.13,5.34424662]
[1752711267963,0.78,174.14,174.11,31.34424662]
[1752711268265,5.74283581,174.13,174.12,5.34424662]
[1752711268758,5.74283581,174.13,174.11,5.34424662]
[1752711268964,6.46283581,174.13,174.12,26.0]
[1752711269143,6.46283581,174.13,174.12,31.34424662]
[1752711269863,6.46283581,174.13,174.11,31.34424662]
[1752711272157,0.06,174.14,174.13,42.78468397]
[1752711272355,0.06,174.14,174.13,77.86893059]
[1752711272560,0.06,174.14,174.13,78.54893059]
[1752711275347,0.06,174.14,174.13,77.86893059]
[1752711276238,0.78,174.14,174.13,5.34424662]
[1752711276856,0.06,174.14,174.13,31.34424662]
[1752711278540,0.06,174.14,174.13,48.80893059]
[1752711278978,0.06,174.14,174.13,78.54893059]
[1752711280652,0.06,174.14,174.13,77.86893059]
[1752711281149,0.06,174.14,174.13,48.12893059]
[1752711281348,0.78,174.14,174.13,31.34424662]
[1752711281544,0.06,174.14,174.13,31.34424662]
[1752711282283,0.06,174.14,174.13,26.0]
[1752711282475,0.06,174.14,174.13,31.34424662]
[1752711283958,0.78,174.14,174.13,26.0]
[1752711284165,1.5019,174.13,174.1,0.03]
[1752711284470,6.84614662,174.13,174.1,0.03]
[1752711284836,6.46316563,174.12,174.1,0.03]
[1752711285269,0.72,174.11,174.1,0.03]
[1752711285658,6.46316563,174.12,174.1,5.37424662]
[1752711285848,6.46316563,174.12,174.1,0.03]
[1752711286250,0.72,174.11,174.1,0.03]
[1752711286461,6.06424662,174.11,174.03,0.03]
[1752711286653,5.7448153,174.07,174.06,5.34424662]
[1752711287151,5.7448153,174.07,174.06,6.02424662]
[1752711287361,5.7448153,174.07,174.06,0.68]
[1752711287558,5.7448153,174.07,174.06,6.02424662]
[1752711288466,5.7448153,174.07,174.06,5.34424662]
[1752711288681,5.74448529,174.08,174.06,5.34424662]
[1752711288978,5.74448529,174.08,174.07,5.34424662]
[1752711289588,26.16994514,174.08,174.04,5.34424662]
[1752711289886,0.72,174.07,174.03,5.37424662]
[1752711290095,0.72,174.06,174.03,5.37424662]
[1752711290871,5.74547543,174.05,174.03,5.37424662]
[1752711291072,5.74547543,174.05,174.04,5.34424662]
[1752711291874,5.74547543,174.05,174.04,48.80893059]
[1752711292776,14.36121323,174.08,174.04,48.80893059]
[1752711292984,15.08121323,174.08,174.04,48.12893059]
[1752711293191,0.72,174.07,174.04,48.12893059]
[1752711294093,14.36121323,174.08,174.04,48.12893059]
[1752711294296,14.36121323,174.08,174.05,6.03424662]
[1752711294691,14.36121323,174.08,174.05,5.34424662]
[1752711294886,15.02121323,174.08,174.05,5.34424662]
[1752711296998,20.76569852,174.08,174.05,5.34424662]
[1752711299784,20.76569852,174.08,174.04,42.78468397]
[1752711299785,20.76569852,174.08,174.04,48.12893059]
[1752711299977,5.74448529,174.08,174.07,48.12893059]
[1752711300184,5.74448529,174.08,174.07,48.81893059]
[1752711300379,5.74448529,174.08,174.07,78.55893059]
[1752711300579,14.35929856,174.11,174.07,78.55893059]
[1752711300793,2.1619,174.13,174.1,5.34424662]
[1752711300794,5.74283581,174.13,174.1,5.34424662]
[1752711301103,5.80260452,174.14,174.12,22.12893059]
[1752711301296,5.80260452,174.14,174.13,6.03424662]
[1752711301491,0.06,174.14,174.13,52.55893059]
[1752711302581,0.06,174.14,174.09,26.0]
[1752711302809,0.06,174.14,174.13,5.34424662]
[1752711305206,0.72,174.14,174.12,26.0]
[1752711305787,11.74708243,174.13,174.09,26.0]
[1752711305995,6.00424662,174.12,174.07,5.34424662]
[1752711306188,0.66,174.12,174.09,5.34424662]
[1752711306790,0.66,174.11,174.09,5.34424662]
[1752711306990,20.75992534,174.13,174.09,5.34424662]
[1752711307399,20.09992534,174.13,174.12,5.34424662]
[1752711307787,14.35708953,174.13,174.12,5.34424662]
[1752711308298,0.06,174.14,174.12,5.34424662]
[1752711310007,0.66,174.13,174.1,5.34424662]
[1752711310186,0.66,174.13,174.1,22.12893059]
[1752711310391,0.06,174.14,174.12,5.34424662]
[1752711310593,0.06,174.14,174.13,5.34424662]
[1752711310808,0.06,174.14,174.12,5.34424662]
[1752711312913,0.06,174.14,174.13,6.03424662]
[1752711314116,0.06,174.14,174.13,5.34424662]
[1752711315817,0.06,174.14,174.13,6.03424662]
[1752711317918,0.06,174.14,174.13,5.34424662]
[1752711318217,0.06,174.14,174.13,6.03424662]
[1752711319904,0.06,174.14,174.13,22.81893059]
[1752711320210,0.06,174.14,174.13,28.16317721]
[1752711320711,0.06,174.14,174.13,33.90601302]
[1752711321823,0.06,174.14,174.13,22.81893059]
[1752711322030,0.06,174.14,174.13,52.53893059]
[1752711323518,0.06,174.14,174.13,22.81893059]
[1752711323698,0.06,174.14,174.13,52.53893059]
[1752711326307,0.06,174.14,174.13,22.81893059]
[1752711326510,0.06,174.14,174.13,52.53893059]
[1752711327211,0.06,174.14,174.13,22.81893059]
[1752711327405,0.06,174.14,174.13,52.53893059]
[1752711332930,0.06,174.14,174.13,58.2817664]
[1752711333122,0.06,174.14,174.13,52.53893059]
[1752711333326,0.06,174.14,174.13,58.2817664]
[1752711333518,0.06,174.17,174.16,26.0]
[1752711333710,0.06,174.17,174.16,31.34424662]
[1752711333911,0.77,174.17,174.16,31.34424662]
[1752711334211,0.06,174.17,174.16,32.05424662]
[1752711334707,0.06,174.17,174.16,48.12893059]
[1752711334911,0.06,174.17,174.16,32.05424662]
[1752711335927,0.06,174.17,174.16,26.71]
[1752711336132,0.06,174.17,174.16,32.05424662]
[1752711338207,0.06,174.17,174.16,48.83893059]
[1752711340540,0.06,174.17,174.16,54.58077716]
[1752711341332,0.06,174.17,174.16,48.83893059]
[1752711341716,0.06,174.17,174.16,54.58077716]
[1752711343218,0.06,174.21,174.2,26.0]
[1752711343429,0.06,174.21,174.2,61.06424662]
[1752711343835,0.77,174.21,174.2,61.06424662]
[1752711344043,0.77,174.21,174.2,31.34424662]
[1752711344340,0.77,174.21,174.2,26.0]
[1752711344918,6.11424662,174.21,174.16,148.3]
[1752711345119,20.09300189,174.19,174.15,5.34424662]
[1752711345321,0.71,174.18,174.15,35.04424662]
[1752711345521,20.09300189,174.19,174.16,5.34424662]
[1752711345741,0.71,174.18,174.14,55.7]
[1752711346042,0.71,174.18,174.17,5.34424662]
[1752711346543,20.09300189,174.19,174.17,5.34424662]
[1752711346731,20.80300189,174.19,174.17,5.34424662]
[1752711347536,0.71,174.18,174.17,5.34424662]
[1752711347740,0.71,174.18,174.14,26.0]
[1752711348042,0.71,174.17,174.16,26.0]
[1752711348242,0.71,174.17,174.16,31.34424662]
[1752711348743,20.80300189,174.19,174.16,31.34424662]
[1752711348944,0.71,174.18,174.16,31.34424662]
[1752711349342,5.7415169,174.17,174.16,31.34424662]
[1752711352130,5.74085768,174.19,174.15,26.0]
[1752711352354,6.45085768,174.19,174.17,5.34424662]
[1752711352651,6.45085768,174.19,174.11,5.74343497]
[1752711352652,6.05424662,174.18,174.1,16.81468397]
[1752711352824,1.6459,174.2,174.1,0.03]
[1752711352825,5.34424662,174.15,174.1,0.03]
[1752711353025,20.09646301,174.16,174.11,5.34424662]
[1752711353332,0.71,174.15,174.11,5.34424662]
[1752711353557,25.44070963,174.16,174.11,5.34424662]
[1752711353756,0.71,174.14,174.12,5.34424662]
[1752711355147,5.74283581,174.13,174.12,5.34424662]
[1752711355327,5.74283581,174.13,174.11,5.34424662]
[1752711355926,6.42283581,174.13,174.1,0.03]
[1752711356125,0.68,174.12,174.1,0.03]
[1752711356530,6.02424662,174.12,174.1,0.03]
[1752711356936,0.68,174.11,174.1,0.03]
[1752711357138,6.42349549,174.11,174.1,0.03]
[1752711358231,5.74328244,174.12,174.1,5.37424662]
[1752711358432,5.74328244,174.12,174.1,0.7]
[1752711358631,5.74328244,174.12,174.11,5.34424662]
[1752711359028,5.74283581,174.13,174.11,5.34424662]
[1752711359735,6.42283581,174.13,174.11,5.34424662]
[1752711360127,5.74283581,174.13,174.12,0.67]
[1752711360327,5.74283581,174.13,174.12,6.01424662]
[1752711360954,5.74283581,174.13,174.12,5.34424662]
[1752711361135,5.74217628,174.15,174.12,5.34424662]
[1752711361453,6.42217628,174.15,174.13,5.34424662]
[1752711361654,6.42217628,174.15,174.11,26.0]
[1752711361859,5.74217628,174.15,174.14,5.34424662]
[1752711362156,5.74217628,174.15,174.12,0.67]
[1752711362329,5.74217628,174.15,174.11,55.7]
[1752711362529,0.68,174.14,174.13,5.34424662]
[1752711363229,6.42184657,174.16,174.13,5.34424662]
[1752711363447,0.68,174.15,174.13,5.34424662]
[1752711363632,0.68,174.14,174.13,5.34424662]
[1752711364736,6.42184657,174.16,174.13,5.34424662]
[1752711365241,5.74250602,174.14,174.13,5.34424662]
[1752711366646,5.74184657,174.16,174.13,35.71424662]
[1752711366852,5.74184657,174.16,174.15,5.34424662]
[1752711367242,20.09243142,174.2,174.15,35.71424662]
[1752711367443,5.74052812,174.2,174.19,5.34424662]
[1752711367836,5.74052812,174.2,174.19,6.01424662]
[1752711368041,5.80031721,174.21,174.19,6.01424662]
[1752711368257,5.80031721,174.21,174.2,35.71424662]
[1752711368562,0.06,174.21,174.2,35.71424662]
[1752711370358,0.06,174.21,174.2,52.49893059]
[1752711370559,0.06,174.21,174.2,5.34424662]
[1752711370734,0.06,174.21,174.2,35.04424662]
[1752711371164,0.06,174.21,174.2,29.7]
[1752711371355,0.06,174.21,174.2,35.04424662]
[1752711371958,0.06,174.21,174.18,26.67]
[1752711372154,0.06,174.21,174.2,5.34424662]
[1752711372659,0.06,174.21,174.2,31.34424662]
[1752711374669,0.06,174.21,174.18,29.7]
[1752711374670,0.74,174.21,174.15,0.67]
[1752711374843,5.34424662,174.2,174.15,5.34424662]
[1752711375047,0.68,174.19,174.15,5.34424662]
[1752711375554,6.42118727,174.18,174.15,5.34424662]
[1752711375757,0.68,174.17,174.15,5.34424662]
[1752711375955,25.43840208,174.18,174.16,26.0]
[1752711376348,25.43840208,174.18,174.13,35.04424662]
[1752711376665,0.68,174.17,174.13,35.04424662]
[1752711376846,0.68,174.16,174.13,35.04424662]
[1752711377244,0.68,174.16,174.14,5.34424662]
[1752711377758,5.74217628,174.15,174.14,5.34424662]
[1752711377959,6.42217628,174.15,174.11,26.03]
[1752711378167,6.42217628,174.15,174.12,5.34424662]
[1752711378845,0.68,174.14,174.11,0.03]
[1752711379240,0.68,174.13,174.11,0.03]
[1752711380247,5.74316563,174.12,174.11,0.03]
[1752711380446,5.64316563,174.12,174.11,0.03]
[1752711382773,6.32316563,174.12,174.11,0.03]
[1752711383652,5.64316563,174.12,174.11,0.03]
[1752711384356,5.64316563,174.12,174.11,6.05424662]
[1752711384550,20.09761699,174.15,174.11,32.05424662]
[1752711384875,5.74217628,174.15,174.13,5.34424662]
[1752711385169,5.74217628,174.15,174.14,5.34424662]
[1752711385875,5.74217628,174.15,174.13,5.34424662]
[1752711386671,20.09646301,174.16,174.13,5.34424662]
[1752711386853,6.01424662,174.15,174.11,26.03]
[1752711387177,0.67,174.14,174.11,31.37424662]
[1752711387371,0.67,174.14,174.11,5.37424662]
[1752711388675,5.74283581,174.13,174.11,5.37424662]
[1752711389565,5.74283581,174.13,174.12,5.34424662]
[1752711389960,5.74283581,174.13,174.12,6.02424662]
[1752711390873,5.74217628,174.15,174.12,6.02424662]
[1752711391457,5.74217628,174.15,174.12,5.34424662]
[1752711391658,0.67,174.14,174.12,5.34424662]
[1752711391856,6.01424662,174.13,174.11,0.03]
[1752711392165,5.34424662,174.12,174.1,0.03]
[1752711392481,5.34424662,174.11,174.1,0.03]
[1752711392789,6.41349549,174.11,174.1,0.03]
[1752711393562,5.74349549,174.11,174.1,5.37424662]
[1752711394762,5.74283581,174.13,174.1,6.05424662]
[1752711394961,5.74283581,174.13,174.12,5.34424662]
[1752711395182,5.74283581,174.13,174.12,6.02424662]
[1752711395360,5.74184657,174.16,174.12,6.02424662]
[1752711395558,5.74184657,174.16,174.15,5.34424662]
[1752711396185,5.74184657,174.16,174.1,26.03]
[1752711396186,20.76646301,174.16,174.1,26.03]
[1752711396492,0.67,174.15,174.12,5.34424662]
[1752711396883,5.74250602,174.14,174.12,5.34424662]
[1752711397422,5.74250602,174.14,174.13,6.02424662]
[1752711397908,5.74250602,174.14,174.13,5.34424662]
[1752711398392,5.74250602,174.14,174.13,6.02424662]
[1752711398889,20.09569504,174.17,174.13,6.02424662]
[1752711399094,20.09569504,174.17,174.14,5.34424662]
[1752711399470,0.67,174.16,174.14,5.34424662]
[1752711401099,5.74217628,174.15,174.14,5.34424662]
[1752711402789,5.74217628,174.15,174.14,6.02424662]
[1752711403409,14.35417814,174.17,174.14,6.02424662]
[1752711403610,14.35417814,174.17,174.15,5.34424662]
[1752711405614,5.74118727,174.18,174.16,5.34424662]
[1752711406186,5.74118727,174.18,174.17,5.34424662]
[1752711406792,20.09228048,174.2,174.17,5.34424662]
[1752711407010,0.67,174.19,174.16,5.34424662]
[1752711408617,5.74118727,174.18,174.16,5.34424662]
[1752711410809,5.74118727,174.18,174.17,5.34424662]
[1752711410996,5.74118727,174.18,174.17,6.02424662]
[1752711411197,5.74052812,174.2,174.17,6.02424662]
[1752711411403,5.74052812,174.2,174.19,5.34424662]
[1752711412128,5.80019861,174.21,174.19,6.02424662]
[1752711412444,5.80019861,174.21,174.2,5.34424662]
[1752711413289,20.15069513,174.21,174.16,0.68]
[1752711413615,20.15069513,174.21,174.16,26.0]
[1752711413616,5.34424662,174.19,174.16,26.0]
[1752711413807,0.69,174.19,174.16,26.0]
[1752711414595,20.84069513,174.21,174.16,32.02424662]
[1752711414797,0.69,174.2,174.16,32.02424662]
[1752711415520,5.74085768,174.19,174.16,32.02424662]
[1752711415700,5.74085768,174.19,174.17,5.34424662]
[1752711416311,5.74085768,174.19,174.17,6.02424662]
[1752711416512,5.74085768,174.19,174.18,6.02424662]
[1752711416821,5.80051218,174.21,174.18,6.02424662]
[1752711417005,5.80051218,174.21,174.2,5.34424662]
[1752711417317,0.06,174.21,174.2,6.02424662]
[1752711417520,0.06,174.21,174.2,32.02424662]
[1752711420926,0.06,174.21,174.17,16.78468397]
[1752711421134,0.69,174.2,174.16,5.34424662]
[1752711421339,5.34424662,174.18,174.14,5.34424662]
[1752711421547,0.69,174.17,174.14,5.34424662]
[1752711421702,5.74184657,174.16,174.14,31.34424662]
[1752711421903,5.74184657,174.16,174.15,5.34424662]
[1752711422126,5.74184657,174.16,174.15,6.02424662]
[1752711422307,5.74118727,174.18,174.15,6.02424662]
[1752711422506,5.74118727,174.18,174.12,29.66]
[1752711422507,5.74118727,174.18,174.17,5.34424662]
[1752711422927,5.74118727,174.18,174.17,6.02424662]
[1752711423305,5.80019861,174.21,174.17,6.02424662]
[1752711424111,5.80019861,174.21,174.2,5.34424662]
[1752711424316,5.80019861,174.21,174.2,6.02424662]
[1752711426130,5.80019861,174.21,174.2,5.34424662]
[1752711428217,0.06,174.21,174.2,6.02424662]
[1752711432537,0.06,174.21,174.2,22.80893059]
[1752711432914,0.06,174.21,174.2,17.46468397]
[1752711433116,0.06,174.21,174.2,22.80893059]
[1752711434236,0.06,174.21,174.2,17.46468397]
[1752711434428,0.06,174.21,174.2,22.80893059]
[1752711436823,0.06,174.21,174.2,31.34424662]
[1752711438131,0.06,174.21,174.2,32.02424662]
[1752711440946,0.75,174.21,174.19,5.34424662]
[1752711441357,0.06,174.21,174.2,5.34424662]
[1752711443948,0.06,174.21,174.2,6.05424662]
[1752711444855,0.06,174.21,174.2,22.83893059]
[1752711445331,30.39,174.27,174.21,42.78468397]
[1752711445332,0.06,174.27,174.21,42.78468397]
[1752711445533,0.06,174.27,174.26,5.34424662]
[1752711446336,0.06,174.27,174.26,6.05424662]
[1752711446536,5.79826817,174.27,174.26,6.05424662]
[1752711446751,5.79826817,174.27,174.26,5.34424662]
[1752711447128,6.46826817,174.27,174.25,5.34424662]
[1752711447331,0.67,174.26,174.24,5.34424662]
[1752711448149,5.79826817,174.27,174.22,0.71]
[1752711448150,0.67,174.25,174.22,5.34424662]
[1752711448339,0.67,174.24,174.21,5.34424662]
[1752711448539,5.73953968,174.23,174.21,5.34424662]
[1752711448745,6.40953968,174.23,174.2,5.34424662]
[1752711448988,0.67,174.22,174.18,5.34424662]
[1752711449131,5.34424662,174.19,174.15,5.34424662]
[1752711449336,0.67,174.19,174.15,6.05424662]
[1752711449636,0.67,174.18,174.14,5.34424662]
[1752711450041,0.67,174.18,174.14,6.05424662]
[1752711450740,5.7415169,174.17,174.14,6.05424662]
[1752711451352,5.7415169,174.17,174.15,6.05424662]
[1752711451743,5.7415169,174.17,174.15,5.34424662]
[1752711451945,20.09530917,174.17,174.14,5.34424662]
[1752711452146,20.76530917,174.17,174.15,5.34424662]
[1752711453038,0.67,174.16,174.13,5.34424662]
[1752711453243,0.67,174.16,174.12,5.34424662]
[1752711453960,20.09530917,174.17,174.14,5.34424662]
[1752711457048,20.09530917,174.17,174.15,5.34424662]
[1752711457447,20.09530917,174.17,174.14,6.05424662]
[1752711457661,20.76530917,174.17,174.14,5.34424662]
[1752711458048,20.76530917,174.17,174.13,5.34424662]
[1752711458740,20.76530917,174.17,174.14,5.34424662]
[1752711458942,20.09530917,174.17,174.14,5.34424662]
[1752711460642,14.35379227,174.17,174.14,5.34424662]
[1752711460837,15.02379227,174.17,174.14,5.34424662]
[1752711461146,14.35379227,174.17,174.14,5.34424662]
[1752711461353,14.35379227,174.17,174.11,17.52468397]
[1752711461354,0.67,174.16,174.13,5.34424662]
[1752711462063,0.67,174.16,174.14,0.03]
[1752711462269,5.74217628,174.15,174.14,0.03]
[1752711462968,5.74217628,174.15,174.14,5.37424662]
[1752711463381,14.35191706,174.2,174.14,22.86893059]
[1752711463668,6.01424662,174.19,174.14,5.37424662]
[1752711463841,0.67,174.18,174.14,0.03]
[1752711464170,0.67,174.18,174.14,5.37424662]
[1752711464348,5.7415169,174.17,174.16,5.34424662]
[1752711464767,5.7415169,174.17,174.16,6.05424662]
[1752711464996,5.7415169,174.17,174.16,5.34424662]
[1752711465140,5.7415169,174.17,174.15,5.34424662]
[1752711465646,5.7415169,174.17,174.15,6.05424662]
[1752711465973,5.7415169,174.17,174.15,5.34424662]
[1752711466169,5.7415169,174.17,174.16,5.34424662]
[1752711466752,20.09471725,174.18,174.15,0.71]
[1752711466954,20.09471725,174.18,174.16,5.34424662]
[1752711467765,20.76471725,174.18,174.16,5.34424662]
[1752711467965,0.67,174.17,174.14,5.37424662]
[1752711468146,0.67,174.17,174.15,5.34424662]
[1752711468648,20.09471725,174.18,174.15,5.34424662]
[1752711468848,15.02352998,174.18,174.15,5.34424662]
[1752711469152,14.35352998,174.18,174.15,5.34424662]
[1752711469354,0.67,174.17,174.14,5.37424662]
[1752711469557,0.67,174.17,174.14,0.03]
[1752711469749,0.67,174.17,174.14,5.37424662]
[1752711469949,0.67,174.16,174.14,0.03]
[1752711470973,5.74217628,174.15,174.14,0.03]
[1752711471345,5.74217628,174.15,174.14,5.37424662]
[1752711471957,5.74217628,174.15,174.14,0.03]
[1752711472250,5.74217628,174.15,174.14,5.37424662]
[1752711472973,5.74184657,174.16,174.14,5.37424662]
[1752711474073,5.74184657,174.16,174.15,5.34424662]
[1752711474269,5.74184657,174.16,174.15,6.06424662]
[1752711475267,20.09471725,174.18,174.15,0.72]
[1752711475576,20.78471725,174.18,174.16,5.34424662]
[1752711475871,0.69,174.17,174.14,0.03]
[1752711476453,0.69,174.16,174.14,0.03]
[1752711477357,6.43217628,174.15,174.14,0.03]
[1752711477776,26.13186361,174.15,174.11,0.03]
[1752711477980,0.69,174.14,174.11,5.37424662]
[1752711478854,20.09761699,174.15,174.13,5.34424662]
[1752711479866,20.78761699,174.15,174.13,5.34424662]
[1752711480067,20.78761699,174.15,174.12,5.34424662]
[1752711480371,20.78761699,174.15,174.11,0.03]
[1752711480372,6.03424662,174.14,174.11,0.03]
[1752711480775,20.09761699,174.15,174.12,5.34424662]
[1752711481164,20.78761699,174.15,174.12,5.34424662]